bitfinex-derivatives/quotes_ETHF0:USTF0_20241104
["timestamp","ask_amount","ask_price","bid_price","bid_amount"]
[1730738865951,0.41281,2423.3,2423.2,3.2078]
[1730738866255,40.8,2423.3,2423.0,3.2078]
[1730738866453,40.8,2423.3,2422.9,0.41287]
[1730738866454,0.41283,2423.2,2422.9,0.41287]
[1730738866658,0.41283,2423.2,2423.0,3.2078]
[1730738866863,40.8,2423.3,2423.1,3.62063]
[1730738867058,0.41282,2423.2,2422.7,3.2078]
[1730738867358,41.21281,2423.3,2423.0,0.41285]
[1730738867659,40.8,2423.3,2423.1,0.41283]
[1730738867955,3.7063,2423.6,2423.2,3.2078]
[1730738868361,3.7063,2423.6,2422.9,3.62066]
[1730738868362,0.41282,2423.2,2422.9,3.62066]
[1730738868553,3.7063,2423.6,2422.9,3.2078]
[1730738868753,3.7063,2423.6,2422.7,4.46519392]
[1730738868754,3.7063,2423.6,2423.1,3.2078]
[1730738868954,0.41279,2423.4,2423.1,0.41283]
[1730738869364,3.7063,2423.6,2422.8,4.24001]
[1730738869560,1.03148079,2423.7,2423.4,7.67299392]
[1730738869754,1.03148079,2423.7,2423.4,3.2078]
[1730738870263,1.03148079,2423.7,2423.5,0.41275]
[1730738870464,1.03148079,2423.7,2423.2,1.06593637]
[1730738870666,7.8794,2423.6,2422.9,4.27373637]
[1730738870966,0.41284,2423.1,2422.8,0.41288]
[1730738871176,4.78492,2423.6,2422.6,3.2078]
[1730738871355,1.2431,2423.0,2422.9,0.41286]
[1730738871664,1.2431,2423.0,2422.9,3.62066]
[1730738871862,3.54182,2423.6,2422.9,3.2078]
[1730738871863,2.5099,2423.6,2422.9,3.2078]
[1730738872067,2.462,2423.6,2423.5,3.2078]
[1730738872372,2.462,2423.6,2423.3,0.4128]
[1730738872373,0.41278,2423.5,2423.3,0.4128]
[1730738872565,0.41278,2423.4,2423.2,0.41281]
[1730738872862,41.21277,2423.5,2423.0,3.2078]
[1730738873057,40.8,2423.5,2423.3,3.2078]
[1730738873267,40.8,2423.5,2423.4,3.62058]
[1730738873458,40.8,2423.5,2423.4,0.41278]
[1730738873666,40.8,2423.5,2423.4,3.62058]
[1730738873966,40.8,2423.5,2423.4,3.2078]
[1730738874158,40.8,2423.5,2423.4,3.62058]
[1730738874857,40.8,2423.5,2423.2,3.2078]
[1730738875064,0.41281,2423.3,2423.1,0.41283]
[1730738875369,0.41279,2423.4,2422.9,3.2078]
[1730738875558,3.96496856,2423.4,2422.6,4.27373637]
[1730738875756,0.4129,2422.7,2422.6,3.2078]
[1730738875966,3.96496856,2423.1,2422.6,3.2078]
[1730738876169,2.96088,2422.9,2422.6,3.62071]
[1730738876368,40.8,2422.7,2422.6,3.62071]
[1730738877461,40.8,2422.7,2422.6,7.74871]
[1730738878365,40.8,2422.7,2422.6,8.81464637]
[1730738878569,40.8,2422.7,2422.6,4.68664637]
[1730738879069,40.8,2422.7,2422.6,3.62071]
[1730738879260,40.8,2422.7,2422.6,7.74871]
[1730738879456,40.8,2422.7,2422.6,9.02041]
[1730738879660,1.2815,2423.2,2423.1,0.41283]
[1730738880070,42.0815,2423.2,2423.1,3.62063]
[1730738880275,42.0815,2423.2,2423.0,0.41284]
[1730738880459,42.0815,2423.2,2423.1,0.41283]
[1730738880860,0.41284,2423.1,2422.7,4.27570751]
[1730738881062,0.41289,2422.8,2422.7,3.2078]
[1730738881566,4.1272,2422.8,2422.7,3.2078]
[1730738881766,0.41288,2422.9,2422.7,3.6207]
[1730738881959,2.84016,2423.0,2422.8,0.41287]
[1730738882163,2.84016,2423.0,2422.9,0.41287]
[1730738882364,0.41286,2423.0,2422.9,0.41285]
[1730738882571,42.0815,2423.2,2423.1,0.41283]
[1730738883169,46.62152,2423.2,2423.1,0.41283]
[1730738883384,46.2087,2423.2,2423.1,0.41283]
[1730738883569,46.2087,2423.2,2422.0,3.50811]
[1730738883570,46.2087,2423.2,2423.0,3.2078]
[1730738883773,0.41284,2423.1,2423.0,0.41283]
[1730738883968,42.0815,2423.2,2422.9,3.2078]
[1730738884163,42.0815,2423.2,2423.1,0.41283]
[1730738884569,46.62152,2423.2,2423.1,0.41283]
[1730738884770,42.0815,2423.2,2423.1,3.62063]
[1730738884969,40.8,2423.2,2423.1,3.62063]
[1730738885470,45.34002,2423.2,2423.1,3.2078]
[1730738885672,45.34002,2423.2,2423.0,0.41285]
[1730738885673,0.41283,2423.1,2423.0,0.41285]
[1730738886270,0.41285,2423.0,2422.9,3.2078]
[1730738886577,5.85265,2423.0,2422.9,3.2078]
[1730738887369,5.85265,2423.0,2422.6,3.2078]
[1730738887370,1.03218,2422.9,2422.6,3.2078]
[1730738887568,0.4129,2422.7,2422.6,3.2078]
[1730738887771,0.4129,2422.7,2422.6,3.62072]
[1730738887977,4.5409,2422.7,2422.6,3.2078]
[1730738888175,4.5409,2422.7,2422.6,3.62072]
[1730738888774,4.5409,2422.7,2422.6,3.2078]
[1730738889274,4.128,2422.7,2422.5,0.41294]
[1730738889475,0.41295,2422.5,2422.4,0.41294]
[1730738889983,1.2091,2422.8,2422.1,5.58483751]
[1730738890482,0.41295,2422.5,2422.4,0.41295]
[1730738890872,0.41295,2422.5,2422.3,0.41296]
[1730738891068,1.03226,2422.7,2422.3,0.41296]
[1730738891273,1.03226,2422.7,2422.1,5.58483751]
[1730738891481,4.99727856,2422.6,2422.1,3.23273]
[1730738891678,0.41299,2422.2,2422.1,0.02493]
[1730738891975,0.4131,2421.6,2421.4,1.48101751]
[1730738892181,40.8,2421.5,2421.4,0.41311]
[1730738892380,41.21311,2421.5,2421.3,0.41313]
[1730738892678,40.8,2421.5,2421.4,0.41312]
[1730738894184,0.41303,2422.0,2421.8,0.41305]
[1730738894379,0.41305,2421.9,2421.5,0.41311]
[1730738894579,40.8,2421.8,2421.7,0.41306]
[1730738895084,40.8,2421.8,2421.4,1.06790751]
[1730738895269,4.4949,2422.1,2421.5,1.03277]
[1730738895474,1.2378,2422.2,2421.5,1.06790751]
[1730738895677,0.41304,2421.9,2421.7,0.41307]
[1730738896671,40.8,2422.1,2421.5,1.06790751]
[1730738896879,0.41305,2421.9,2421.4,1.06790751]
[1730738897072,40.8,2422.1,2421.6,0.41308]
[1730738897073,0.41307,2421.8,2421.6,0.41308]
[1730738897282,40.8,2422.1,2421.7,0.41306]
[1730738897283,0.41305,2421.9,2421.7,0.41306]
[1730738897484,0.41305,2421.9,2421.6,0.41308]
[1730738897988,0.41305,2421.9,2421.7,0.41307]
[1730738898386,40.8,2422.1,2421.5,1.06790751]
[1730738898895,1.03199174,2422.5,2421.9,1.06790751]
[1730738899181,0.41301,2422.1,2421.9,0.41303]
[1730738899385,41.21301,2422.1,2421.9,0.41303]
[1730738899581,0.41302,2422.0,2421.8,1.48095751]
[1730738899987,0.41302,2422.0,2421.8,0.41305]
[1730738900183,41.21301,2422.1,2421.9,0.41303]
[1730738900386,41.21301,2422.1,2421.7,1.06790751]
[1730738900387,41.21301,2422.1,2421.8,0.41304]
[1730738900595,41.21301,2422.1,2421.9,0.41303]
[1730738900784,0.41303,2422.0,2421.8,0.41304]
[1730738900979,41.21301,2422.1,2421.9,0.41303]
[1730738901385,40.8,2422.1,2421.8,1.06790751]
[1730738901588,0.41307,2421.7,2421.5,1.06790751]
[1730738901791,10.71733856,2422.0,2421.3,1.48104751]
[1730738901983,0.41311,2421.5,2421.3,1.48104751]
[1730738902182,0.41311,2421.5,2421.4,0.41312]
[1730738902391,7.50953856,2422.0,2421.2,4.27570751]
[1730738902587,9.68476856,2422.0,2421.3,1.06790751]
[1730738902789,0.41307,2421.8,2421.6,0.41309]
[1730738903181,2.512,2422.0,2421.4,1.06790751]
[1730738903392,1.2846,2422.0,2421.5,1.06790751]
[1730738903587,1.2846,2422.0,2421.9,0.41304]
[1730738903897,41.21301,2422.1,2422.0,0.41302]
[1730738903898,40.8,2422.1,2422.0,0.41302]
[1730738904091,1.03199174,2422.5,2422.4,0.41295]
[1730738905997,1.03199174,2422.5,2422.4,1.48945762]
[1730738906193,3.2078,2423.2,2422.5,1.03235]
[1730738906493,4.99644935,2423.7,2422.7,4.28430762]
[1730738906494,1.03196,2423.4,2422.7,4.28430762]
[1730738906690,41.83202,2423.3,2422.7,1.07650762]
[1730738906888,41.83202,2423.3,2422.8,0.41288]
[1730738906889,0.41286,2423.0,2422.8,0.41288]
[1730738907099,1.2597,2423.2,2422.7,1.48939762]
[1730738907395,0.41289,2422.8,2422.7,1.07650762]
[1730738907694,0.4129,2422.7,2422.6,1.07650762]
[1730738907893,0.4129,2422.7,2422.5,1.48943762]
[1730738908094,0.4129,2422.8,2422.5,1.48943762]
[1730738908295,1.2293,2423.0,2422.5,1.07650762]
[1730738908596,0.41289,2422.8,2422.6,0.41291]
[1730738908992,0.41288,2422.9,2422.6,0.41291]
[1730738909398,0.41289,2422.8,2422.6,0.41291]
[1730738909700,1.2293,2423.0,2422.5,1.07650762]
[1730738909701,0.41291,2422.7,2422.5,0.41293]
[1730738909900,1.2293,2423.0,2422.4,4.28430762]
[1730738910191,0.41291,2422.7,2422.5,0.41294]
[1730738910398,0.41292,2422.7,2422.4,3.62074]
[1730738910597,0.4129,2422.8,2422.5,0.41293]
[1730738910792,0.4129,2422.7,2422.5,0.41293]
[1730738910992,4.4371,2423.0,2422.4,4.28430762]
[1730738911189,0.41289,2422.8,2422.4,4.28430762]
[1730738911391,0.41292,2422.6,2422.4,3.62074]
[1730738911599,0.41287,2422.9,2422.4,3.2078]
[1730738911794,0.41291,2422.7,2422.5,0.41293]
[1730738912193,4.4371,2423.0,2422.5,0.41293]
[1730738912393,0.4129,2422.7,2422.5,0.41293]
[1730738912598,4.4371,2423.0,2422.5,0.41293]
[1730738912798,0.4129,2422.8,2422.6,0.41292]
[1730738913198,0.41287,2422.9,2422.6,0.41292]
[1730738913497,0.4129,2422.7,2422.6,0.41292]
[1730738913800,4.4371,2423.0,2422.6,0.41292]
[1730738913801,0.4129,2422.8,2422.6,0.41292]
[1730738914001,4.4371,2423.0,2422.6,0.41292]
[1730738914200,0.4129,2422.7,2422.6,0.41292]
[1730738914703,5.46925,2423.0,2422.5,0.41292]
[1730738914896,0.41296,2422.4,2422.3,0.41296]
[1730738915094,1.03235,2422.5,2421.9,1.07650762]
[1730738915393,0.41306,2421.8,2421.7,1.2617]
[1730738915603,40.8,2421.8,2421.4,4.28430762]
[1730738915899,41.21306,2421.8,2421.7,0.41307]
[1730738916101,40.8,2421.8,2421.5,0.4131]
[1730738916294,40.8,2421.8,2421.6,0.41309]
[1730738916597,0.41308,2421.7,2421.4,3.2078]
[1730738916803,0.41308,2421.7,2421.6,0.41309]
[1730738917798,4.1296,2421.7,2421.4,3.62091]
[1730738917992,4.1296,2421.7,2421.1,4.69746762]
[1730738917993,1.03273,2421.6,2421.1,4.69746762]
[1730738918195,1.03273,2421.6,2420.7,9.81486762]
[1730738918196,0.41317,2421.2,2420.7,9.81486762]
[1730738918394,4.5148,2421.5,2420.7,7.70525]
[1730738918395,3.2078,2421.5,2420.7,7.70525]
[1730738918608,40.8,2421.8,2421.7,0.41307]
[1730738918898,40.8,2421.8,2421.3,2.10932762]
[1730738919101,40.8,2421.8,2421.6,0.41309]
[1730738919102,41.21307,2421.8,2421.6,0.41309]
[1730738919496,40.8,2421.8,2421.3,2.34920762]
[1730738919695,41.21306,2421.8,2421.6,0.41309]
[1730738920197,41.21306,2421.8,2421.3,1.2727]
[1730738920198,0.41309,2421.7,2421.3,1.2727]
[1730738920393,40.8,2421.8,2421.3,1.2727]
[1730738920795,0.41312,2421.5,2421.3,0.41314]
[1730738921097,3.62383265,2421.7,2421.1,2.5359]
[1730738921298,3.62383265,2421.7,2421.3,0.41313]
[1730738921603,0.41311,2421.5,2421.3,0.41314]
[1730738922196,3.62383265,2421.7,2421.2,0.41315]
[1730738922501,3.62383265,2421.7,2421.3,0.41313]
[1730738922691,4.03691265,2421.7,2421.1,2.5359]
[1730738922897,4.03691265,2421.7,2421.4,0.41312]
[1730738923097,4.03691265,2421.7,2421.5,0.4131]
[1730738923307,3.62383265,2421.7,2421.3,3.2078]
[1730738923512,0.4131,2421.6,2421.4,0.41312]
[1730738923798,3.62383265,2421.7,2421.1,4.64533762]
[1730738923799,0.41313,2421.4,2421.2,0.41315]
[1730738924004,0.41312,2421.5,2421.2,0.41314]
[1730738924194,0.41312,2421.5,2421.1,1.291]
[1730738924398,6.83163265,2421.7,2421.1,1.291]
[1730738924601,0.4131,2421.6,2421.1,1.291]
[1730738924800,7.24472265,2421.7,2421.4,0.41312]
[1730738924997,3.62383265,2421.7,2421.4,0.41312]
[1730738925201,2.32053265,2421.7,2421.6,0.41309]
[1730738925395,1.03233265,2421.7,2421.6,0.41309]
[1730738925998,1.03233265,2421.7,2421.5,3.2078]
[1730738926200,1.44540265,2421.7,2421.5,0.4131]
[1730738926405,1.03233265,2421.7,2421.6,0.41309]
[1730738927201,1.44541265,2421.7,2421.5,0.4131]
[1730738927404,1.03233265,2421.7,2421.2,1.48964762]
[1730738927595,4.24013265,2421.7,2421.1,1.291]
[1730738927905,0.41313,2421.4,2421.2,0.41315]
[1730738928504,1.67152,2421.5,2421.3,0.41314]
[1730738928706,1.2584,2421.5,2421.1,4.4988]
[1730738928901,4.4662,2421.5,2420.8,1.07650762]
[1730738929204,0.41317,2421.2,2421.0,0.41319]
[1730738929508,6.75669,2421.5,2420.7,8.78175762]
[1730738929703,6.75669,2421.5,2420.7,7.70525]
[1730738929897,0.41317,2421.2,2421.0,0.41319]
[1730738930096,6.75669,2421.5,2421.1,0.41317]
[1730738930305,1.2584,2421.5,2421.3,0.41313]
[1730738930504,1.2584,2421.5,2421.2,0.41315]
[1730738930807,1.2584,2421.5,2421.0,3.2078]
[1730738931005,1.2584,2421.5,2421.4,0.41312]
[1730738931403,0.41314,2421.4,2421.3,0.41314]
[1730738931906,1.67152,2421.5,2421.4,0.41312]
[1730738932203,0.41312,2421.5,2421.4,0.41312]
[1730738932405,1.03233265,2421.7,2421.1,1.222]
[1730738932703,1.03233265,2421.7,2421.6,0.41309]
[1730738934800,1.44540265,2421.7,2421.6,0.41309]
[1730738935000,1.03233265,2421.7,2421.3,1.03286]
[1730738935203,3.96496856,2421.6,2421.2,1.2342]
[1730738935406,0.41314,2421.4,2421.3,0.41313]
[1730738936097,41.21314,2421.4,2421.3,0.41313]
[1730738936509,0.41314,2421.3,2421.2,1.2342]
[1730738936706,0.41314,2421.3,2421.2,1.64736]
[1730738937207,0.41317,2421.1,2421.0,3.2078]
[1730738937813,4.54357,2421.1,2421.0,3.2078]
[1730738939004,0.41317,2421.1,2421.0,3.62099]
[1730738939212,0.41317,2421.1,2421.0,3.2078]
[1730738939213,4.54357,2421.1,2421.0,3.2078]
[1730738939511,4.54357,2421.1,2421.0,0.41319]
[1730738939711,0.41321,2421.0,2420.9,0.4132]
[1730738939913,4.467,2421.2,2420.7,4.49745]
[1730738940112,4.467,2421.2,2420.7,4.91068]
[1730738940113,0.41323,2420.8,2420.7,4.91068]
[1730738940303,0.41322,2420.9,2420.8,0.41322]
[1730738940506,5.49991,2421.2,2420.7,4.49745]
[1730738940715,0.41323,2420.8,2420.7,4.91068]
[1730738940911,0.41323,2420.8,2420.7,4.49745]
[1730738941307,0.41323,2420.8,2420.7,4.91069]
[1730738941507,0.41321,2420.9,2420.8,0.41322]
[1730738941704,0.41321,2420.9,2420.7,4.49745]
[1730738941910,0.41321,2420.9,2420.8,0.41323]
[1730738942111,0.41321,2420.9,2420.7,4.91068]
[1730738942312,0.4132,2421.0,2420.7,4.49745]
[1730738942518,0.41321,2420.9,2420.8,0.41322]
[1730738943218,1.44611,2421.1,2420.7,4.91068]
[1730738943421,0.41323,2420.9,2420.7,4.91068]
[1730738943623,5.49991,2421.2,2420.7,4.91068]
[1730738943811,0.41323,2420.8,2420.7,4.49745]
[1730738944217,4.54443,2420.8,2420.7,4.49745]
[1730738944923,4.54443,2420.8,2420.2,0.41331]
[1730738944924,0.41332,2420.3,2420.2,0.41331]
[1730738945417,41.21332,2420.3,2420.2,0.41331]
[1730738945716,40.8,2420.3,2420.2,0.41333]
[1730738945919,41.21332,2420.3,2420.2,0.41333]
[1730738946115,40.8,2420.3,2420.0,1.2859]
[1730738946615,40.8,2420.3,2420.2,0.41333]
[1730738947318,41.21332,2420.3,2420.2,0.41333]
[1730738947515,40.8,2420.3,2420.2,0.41333]
[1730738947917,40.8,2420.3,2420.0,1.2859]
[1730738948114,3.96496856,2420.2,2419.8,3.2078]
[1730738948620,0.41336,2420.1,2419.9,0.41338]
[1730738948819,3.96496856,2420.2,2419.9,0.41338]
[1730738948820,0.41336,2420.0,2419.9,0.41338]
[1730738949217,40.8,2420.3,2420.2,0.41333]
[1730738949424,0.41328,2420.5,2420.3,0.4133]
[1730738949724,0.41328,2420.5,2420.2,3.2078]
[1730738950025,41.21329,2420.4,2420.3,1.63401]
[1730738950226,40.8,2420.4,2420.3,1.63401]
[1730738950729,40.8,2420.4,2420.2,3.2078]
[1730738950730,0.41331,2420.3,2420.2,3.2078]
[1730738951020,40.8,2420.4,2420.1,0.41334]
[1730738951327,0.41333,2420.2,2420.1,0.41334]
[1730738951528,41.83325,2420.4,2419.9,0.41336]
[1730738951822,3.96496856,2420.3,2419.8,1.2207]
[1730738952123,0.41338,2419.9,2419.8,1.2207]
[1730738952524,0.41338,2419.9,2419.7,1.6977]
[1730738952525,0.4134,2419.8,2419.7,1.69771]
[1730738952925,0.4134,2419.8,2419.7,1.2843]
[1730738953119,3.96496856,2420.0,2419.6,3.2078]
[1730738953324,0.41341,2419.7,2419.5,1.67024]
[1730738953626,3.2078,2419.6,2419.2,2.43817]
[1730738953924,0.41346,2419.5,2419.3,0.41348]
[1730738954124,0.41347,2419.4,2419.3,0.41348]
[1730738954321,3.2078,2419.6,2419.2,2.43817]
[1730738954518,0.41348,2419.3,2419.2,2.43817]
[1730738954914,7.75488,2419.3,2419.2,2.43817]
[1730738955321,48.55488,2419.3,2419.2,2.43817]
[1730738957122,45.34708,2419.3,2419.2,2.85167]
[1730738957316,40.8,2419.3,2419.2,2.85167]
[1730738957518,41.21348,2419.3,2419.2,2.85167]
[1730738957724,41.21348,2419.3,2419.2,2.43817]
[1730738958118,45.34708,2419.3,2419.2,2.43817]
[1730738959330,44.9336,2419.3,2419.2,2.85167]
[1730738959627,3.62981089,2419.9,2419.2,2.85167]
[1730738959628,3.2078,2420.0,2419.2,6.57177]
[1730738959837,3.62117,2420.0,2419.9,0.41338]
[1730738960132,0.41335,2420.1,2420.0,0.41335]
[1730738960524,45.79789836,2420.3,2419.7,1.2414]
[1730738960723,45.79789836,2420.3,2419.7,1.6548]
[1730738960724,0.4134,2419.8,2419.7,1.6548]
[1730738961126,8.09776856,2419.8,2419.4,4.28430762]
[1730738961327,0.41344,2419.6,2419.5,0.41344]
[1730738961531,4.99847856,2419.8,2419.4,3.2078]
[1730738961726,3.96496856,2419.8,2419.4,3.2078]
[1730738961924,3.96496856,2419.8,2419.5,0.41344]
[1730738961925,0.41344,2419.6,2419.5,0.41344]
[1730738962229,0.41342,2419.7,2419.4,3.2078]
[1730738962435,0.41342,2419.7,2419.6,0.41343]
[1730738963129,4.1328,2419.7,2419.3,2.5292]
[1730738963339,0.41347,2419.4,2419.3,2.5292]
[1730738963538,3.96496856,2419.5,2419.1,0.41351]
[1730738963731,3.96496856,2419.3,2418.9,2.578]
[1730738963936,40.8,2419.2,2418.9,2.99154]
[1730738964130,0.41353,2419.0,2418.9,2.578]
[1730738964330,0.41353,2419.1,2418.9,2.99154]
[1730738964535,0.41352,2419.1,2418.9,2.99154]
[1730738965537,40.8,2419.2,2418.9,2.578]
[1730738965835,0.41353,2419.0,2418.9,2.578]
[1730738966342,40.8,2419.2,2418.9,2.578]
[1730738966640,0.41353,2419.1,2418.9,2.578]
[1730738966933,0.41353,2419.0,2418.9,2.578]
[1730738967342,0.41353,2419.1,2418.9,2.578]
[1730738967525,0.41353,2419.1,2418.9,2.99155]
[1730738967932,0.41353,2419.0,2418.9,2.99155]
[1730738968131,40.8,2419.2,2418.9,2.578]
[1730738968335,0.41352,2419.1,2418.9,2.578]
[1730738968533,41.21351,2419.2,2419.0,0.41353]
[1730738969134,41.21351,2419.2,2419.1,0.41352]
[1730738969634,0.41352,2419.1,2419.0,0.41352]
[1730738969833,41.21351,2419.2,2419.1,0.41352]
[1730738970339,0.41353,2419.1,2419.0,0.41353]
[1730738970635,0.41353,2419.0,2418.9,2.99154]
[1730738971137,0.41353,2419.1,2419.0,0.41353]
[1730738971342,3.64081935,2419.1,2419.0,0.41353]
[1730738971543,0.41353,2419.0,2418.9,1.2741]
[1730738971737,0.41353,2419.0,2418.9,1.68765]
[1730738971937,0.41353,2419.0,2418.9,1.2741]
[1730738972236,3.64081935,2419.1,2419.0,0.41353]
[1730738972428,3.22728935,2419.1,2419.0,0.41353]
[1730738972633,41.21351,2419.2,2419.1,0.41352]
[1730738972634,40.8,2419.2,2419.1,0.41352]
[1730738972935,3.22728935,2419.3,2419.2,0.4135]
[1730738973537,0.41352,2419.1,2419.0,1.69413]
[1730738973749,3.22728935,2419.3,2419.0,1.2806]
[1730738974131,3.64077935,2419.3,2419.2,0.4135]
[1730738974338,0.4135,2419.2,2419.1,0.4135]
[1730738975139,40.8,2419.4,2419.0,1.2806]
[1730738975335,3.22728935,2419.8,2419.7,0.41341]
[1730738975648,6.43508935,2420.0,2419.5,1.03362]
[1730738975840,40.8,2419.9,2419.8,0.41338]
[1730738976646,4.26021915,2420.3,2419.8,4.1328]
[1730738976847,0.41336,2420.1,2419.7,1.03354]
[1730738977047,40.8,2420.0,2419.9,0.41337]
[1730738977452,5.41621953,2420.3,2420.2,0.41333]
[1730738977656,0.41335,2420.1,2420.0,0.41335]
[1730738977946,41.21334,2420.2,2420.1,0.41334]
[1730738978157,0.41335,2420.1,2420.0,0.41336]
[1730738978456,40.8,2420.2,2419.7,1.03353]
[1730738978665,4.38333973,2420.0,2419.9,0.41337]
[1730738978955,0.41341,2419.7,2419.6,6.19882]
[1730738979147,3.96996973,2420.0,2419.6,5.7854]
[1730738979344,3.96996973,2420.0,2419.6,3.61118]
[1730738979546,0.41339,2419.9,2419.8,0.41338]
[1730738979953,3.96996973,2420.0,2419.6,2.5776]
[1730738980150,0.4134,2419.9,2419.8,0.41339]
[1730738980852,4.38333973,2420.0,2419.9,0.41338]
[1730738981268,4.38333973,2420.0,2419.8,0.41338]
[1730738981269,0.4134,2419.9,2419.8,0.41338]
[1730738981962,3.96996973,2420.0,2419.7,0.4134]
[1730738981963,0.4134,2419.8,2419.7,0.4134]
[1730738982159,3.96996973,2420.0,2419.6,2.5776]
[1730738982566,0.41339,2419.9,2419.8,0.41338]
[1730738982755,4.38333973,2420.0,2419.9,0.41338]
[1730738983062,4.38332973,2420.0,2419.9,0.41338]
[1730738983262,3.96996973,2420.0,2419.7,1.03354]
[1730738983461,3.96996973,2420.0,2419.6,2.5776]
[1730738983462,4.38333973,2420.0,2419.9,0.41338]
[1730738983963,40.8,2420.2,2420.1,0.41335]
[1730738985463,40.8,2420.2,2420.1,1.74305]
[1730738986470,0.41328,2420.6,2420.4,0.41328]
[1730738986668,3.2078,2420.7,2420.5,0.41327]
[1730738986863,41.21326,2420.6,2420.5,0.41327]
[1730738987055,41.21326,2420.6,2420.2,6.64606471]
[1730738987266,41.21326,2420.6,2420.5,0.41328]
[1730738987568,40.8,2420.6,2420.5,0.41328]
[1730738987866,41.21326,2420.6,2420.5,0.41328]
[1730738988571,0.41328,2420.5,2420.4,0.41329]
[1730738989063,0.41328,2420.5,2420.3,0.4133]
[1730738989261,40.8,2420.6,2420.3,1.07404471]
[1730738989464,0.41329,2420.5,2420.3,0.4133]
[1730738989666,0.4133,2420.4,2420.3,0.41331]
[1730738990067,44.76996973,2420.6,2420.3,0.41331]
[1730738990269,44.76996973,2420.6,2420.2,2.40494471]
[1730738990465,0.41331,2420.4,2420.3,0.41331]
[1730738990770,44.76996973,2420.6,2420.2,2.40494471]
[1730738990969,44.76996973,2420.6,2420.0,2.85216706]
[1730738990970,0.41333,2420.2,2420.0,1.48739471]
[1730738991175,3.96996973,2420.1,2419.8,2.34654471]
[1730738991467,3.96996973,2420.1,2419.7,1.2772]
[1730738991468,0.41336,2420.0,2419.7,2.35124471]
[1730738991663,0.4134,2419.8,2419.7,1.69061]
[1730738992068,3.96996973,2420.1,2419.7,1.2772]
[1730738992268,3.96996973,2420.1,2419.8,0.41339]
[1730738992475,0.41338,2419.9,2419.8,0.41339]
[1730738993177,0.4134,2419.8,2419.7,1.2772]
[1730738993371,1.03343,2420.0,2419.6,3.2078]
[1730738993674,4.24136,2419.7,2419.3,0.41348]
[1730738993974,1.03356,2419.7,2419.2,2.43804471]
[1730738994176,3.96996973,2419.5,2419.2,1.364]
[1730738994371,3.96996973,2419.5,2419.2,1.77749]
[1730738994678,3.96996973,2419.5,2419.1,1.2768]
[1730738994679,0.4135,2419.2,2419.1,1.2768]
[1730738994975,0.41353,2419.0,2418.8,1.70256]
[1730738995279,40.8,2418.9,2418.7,0.41357]
[1730738995466,0.41358,2418.7,2418.6,1.07404471]
[1730738995672,1.03397,2418.7,2417.8,1.07404471]
[1730738995968,1.03397,2418.7,2417.7,1.3421]
[1730738995969,4.38362973,2418.3,2418.1,0.41368]
[1730738996167,0.41374,2417.8,2417.7,1.07404471]
[1730738996373,3.96996973,2417.8,2417.6,1.07404471]
[1730738996568,3.96996973,2417.7,2417.0,4.28184471]
[1730738996765,7.17776973,2417.1,2416.8,1.61106706]
[1730738997273,7.17776973,2417.1,2416.3,1.03499]
[1730738997466,7.17776973,2417.1,2416.2,2.90006706]
[1730738997467,3.96996973,2416.8,2416.2,1.289]
[1730738997671,3.96996973,2416.5,2416.2,1.289]
[1730738997979,7.17776973,2416.5,2415.9,2.5885]
[1730738998175,3.96996973,2416.2,2415.6,1.3228]
[1730738998481,7.17776973,2416.8,2415.7,1.06075251]
[1730738998668,7.17776973,2416.8,2416.4,0.41397]
[1730738998869,7.17776973,2416.8,2416.4,0.41398]
[1730738998870,3.2078,2416.8,2416.4,0.41398]
[1730738999066,3.96996973,2417.1,2416.2,3.2078]
[1730738999067,7.17776973,2417.1,2416.2,3.2078]
[1730738999275,7.17776973,2417.1,2416.7,0.41393]
[1730738999580,3.2078,2417.1,2416.9,0.41389]
[1730738999769,3.2078,2417.5,2417.1,0.41385]
[1730738999968,3.2078,2417.2,2416.2,1.4879]
[1730739000176,3.96996973,2417.1,2416.3,3.2078]
[1730739000377,3.96996973,2417.1,2416.7,0.41391]
[1730739000576,3.96996973,2417.1,2416.3,3.2078]
[1730739000877,3.2078,2417.5,2416.4,3.96996973]
[1730739001077,3.2078,2417.5,2416.9,0.41389]
[1730739001078,0.41382,2417.4,2416.9,0.41389]
[1730739001378,3.2078,2417.2,2416.4,3.96996973]
[1730739001581,3.62159,2417.5,2417.0,0.41386]
[1730739001881,3.2078,2417.5,2417.2,0.41383]
[1730739002070,3.96996973,2417.6,2416.8,3.2078]
[1730739002273,3.62155,2417.8,2416.9,1.3017]
[1730739002274,3.2078,2417.8,2416.9,1.3017]
[1730739002475,3.2078,2417.8,2417.3,0.41382]
[1730739002677,3.2078,2417.8,2417.0,1.2865]
[1730739003075,3.2078,2417.8,2417.1,3.2078]
[1730739003270,3.2078,2417.8,2417.3,0.41381]
[1730739003580,3.2078,2417.8,2417.1,3.2078]
[1730739003581,3.2078,2417.8,2417.4,0.4138]
[1730739003774,3.2078,2417.8,2417.5,0.41378]
[1730739004279,4.47080833,2417.7,2417.1,3.2078]
[1730739004471,0.41381,2417.4,2417.1,3.2078]
[1730739004885,4.47080833,2417.7,2417.1,0.41385]
[1730739005080,0.41376,2417.7,2417.3,0.41382]
[1730739005269,3.2078,2417.8,2417.4,0.4138]
[1730739005586,3.62155,2417.8,2417.1,3.2078]
[1730739005773,3.62155,2417.8,2417.4,0.4138]
[1730739006279,3.2078,2417.8,2417.4,4.136]
[1730739006475,0.41365,2418.4,2417.9,0.41371]